bitfinex-derivatives/quotes_ETHF0:USTF0_20251013
["timestamp","ask_amount","ask_price","bid_price","bid_amount"]
[1760368094545,3.2078,4096.6,4096.4,0.43901]
[1760368094749,3.2078,4097.1,4097.0,1.2832]
[1760368094942,3.2078,4097.1,4097.0,1.5362]
[1760368095341,3.21023342,4097.1,4097.0,1.53803652]
[1760368095744,4.40233342,4097.1,4097.0,0.00183652]
[1760368096652,7.54518747,4097.1,4097.0,0.00183652]
[1760368097857,7.54518747,4097.1,4095.0,1.60339]
[1760368097858,1.1921,4096.2,4095.2,1.2417]
[1760368098056,3.2078,4095.6,4095.4,0.43912]
[1760368098248,3.2078,4095.6,4095.5,1.2417]
[1760368098547,0.43907,4095.9,4095.3,0.253]
[1760368098745,3.2078,4096.1,4095.4,1.2417]
[1760368098947,0.43908,4095.8,4095.6,0.43909]
[1760368099454,3.2078,4096.1,4095.9,1.2417]
[1760368099455,3.64685,4096.1,4095.9,1.2417]
[1760368099655,0.43906,4096.0,4095.4,1.2417]
[1760368099947,0.43906,4096.0,4095.6,1.2417]
[1760368100154,0.43906,4096.0,4095.8,0.43907]
[1760368100451,1.63118,4095.8,4095.5,0.4391]
[1760368100640,1.63118,4095.8,4095.3,1.24463751]
[1760368100641,1.63118,4095.8,4095.6,0.69209]
[1760368100839,0.43906,4096.0,4095.6,0.69209]
[1760368101054,1.63116,4096.0,4095.8,0.43907]
[1760368101241,0.43907,4095.9,4095.6,0.69209]
[1760368101640,1.1921,4095.9,4095.7,0.43908]
[1760368101849,3.2271,4096.1,4095.7,1.2417]
[1760368102051,1.63117,4095.9,4095.3,0.00293751]
[1760368102347,0.4391,4095.6,4095.4,1.4947]
[1760368102550,0.43909,4095.7,4095.4,1.4947]
[1760368102746,0.43907,4095.9,4095.5,1.2417]
[1760368102952,0.43905,4096.0,4095.5,1.7089]
[1760368103148,0.43905,4096.0,4095.6,1.2417]
[1760368103348,3.66614,4096.1,4095.9,0.43906]
[1760368103844,3.66614,4096.1,4096.0,1.2417]
[1760368104045,0.0193,4096.1,4096.0,2.40095]
[1760368104242,2.19437,4097.8,4096.0,2.40095]
[1760368104243,3.21023342,4097.1,4097.0,0.43895]
[1760368104455,1.3009,4098.5,4097.5,0.4672]
[1760368104456,3.2078,4098.1,4097.5,0.4672]
[1760368104750,3.2078,4097.6,4097.2,0.43892]
[1760368104953,1.1921,4097.5,4097.2,0.43892]
[1760368105146,1.631,4097.5,4097.3,0.69191]
[1760368105346,1.19521821,4097.5,4097.3,0.69191]
[1760368106155,0.44201821,4097.5,4097.3,1.93361]
[1760368106946,0.00311821,4097.5,4097.3,0.69191]
[1760368107148,0.00311821,4097.5,4097.3,1.93361]
[1760368107550,0.00311821,4097.5,4097.3,0.69191]
[1760368107745,0.00311821,4097.5,4097.4,1.2417]
[1760368108353,0.00311821,4097.5,4097.3,0.69191]
[1760368108354,3.2078,4099.1,4098.5,2.14769]
[1760368108554,1.63085,4098.9,4098.6,0.43877]
[1760368108852,0.43877,4098.7,4098.5,0.253]
[1760368109049,0.43877,4098.7,4098.5,1.93348]
[1760368109252,0.44144248,4098.7,4098.6,1.2417]
[1760368109451,3.64924248,4098.7,4098.5,0.25550934]
[1760368109654,4.84134248,4098.7,4098.5,0.25550934]
[1760368109851,1.1921,4098.6,4098.5,0.00250934]
[1760368110754,3.21047248,4098.7,4098.5,0.00250934]
[1760368111056,3.64924248,4098.7,4098.5,0.00250934]
[1760368111254,4.84134248,4098.7,4098.5,0.00250934]
[1760368111662,3.21047248,4098.7,4098.6,1.2417]
[1760368113156,0.00267248,4098.7,4098.6,1.2417]
[1760368113355,3.2078,4099.3,4099.2,1.68041]
[1760368113548,3.2078,4099.3,4099.2,1.93341]
[1760368113949,3.2078,4099.3,4098.5,0.46970934]
[1760368114154,0.43872,4099.1,4098.8,0.43875]
[1760368114348,0.43871,4099.2,4098.6,0.253]
[1760368114561,0.43872,4099.1,4099.0,1.2417]
[1760368114755,3.21089947,4099.3,4098.7,0.43876]
[1760368114958,0.43873,4099.1,4098.6,0.69177]
[1760368115260,0.43875,4098.9,4098.7,0.69076]
[1760368115460,0.43875,4098.9,4098.8,1.2417]
[1760368116160,3.64960947,4099.3,4099.0,0.43873]
[1760368116356,0.43873,4099.1,4098.8,0.43875]
[1760368116563,0.43873,4099.1,4099.0,1.2417]
[1760368116855,3.21089947,4099.3,4099.2,1.68041]
[1760368117661,3.21089947,4099.3,4099.2,1.93241]
[1760368118461,3.21089947,4099.3,4099.2,1.68041]
[1760368118764,3.21089947,4099.3,4099.2,1.93241]
[1760368119064,3.21089947,4099.3,4099.2,1.4937]
[1760368119561,0.43875,4098.9,4098.7,0.43876]
[1760368119865,0.43875,4098.9,4098.8,1.4937]
[1760368120062,0.43873,4099.1,4099.0,1.68043]
[1760368120264,0.43873,4099.1,4099.0,2.14763]
[1760368120658,0.43877,4098.7,4098.6,1.68047]
[1760368120961,0.43875,4098.9,4098.8,0.43875]
[1760368121165,0.43875,4098.9,4098.8,1.68045]
[1760368121763,0.43875,4098.9,4098.8,1.2417]
[1760368121960,0.43875,4098.9,4098.8,1.68045]
[1760368122382,3.21089947,4099.3,4099.1,1.2417]
[1760368122561,3.21089947,4099.3,4099.2,1.93241]
[1760368122862,3.21089947,4099.3,4099.2,1.68041]
[1760368123071,3.21089947,4099.3,4099.2,1.93241]
[1760368123962,0.00309947,4099.3,4099.2,1.93241]
[1760368124567,0.00309947,4099.3,4099.2,4.88821]
[1760368124773,0.00309947,4099.3,4099.2,5.14021]
[1760368125364,3.64645,4099.8,4099.7,1.68036]
[1760368125563,3.2078,4099.8,4099.7,1.93236]
[1760368126267,3.20971029,4099.8,4099.7,1.93236]
[1760368126468,3.2078,4100.3,4099.7,1.93236]
[1760368126657,3.2078,4100.8,4100.7,1.65385]
[1760368126857,3.2078,4100.8,4100.7,1.4673]
[1760368127267,4.83339,4101.3,4100.7,1.90585]
[1760368127468,3.2078,4101.3,4101.2,1.2578]
[1760368127659,3.2078,4101.3,4101.2,1.5098]
[1760368127660,3.21084261,4101.3,4101.2,1.5098]
[1760368128568,3.21084261,4101.3,4101.2,1.9483]
[1760368128569,0.00304261,4101.3,4101.2,1.9483]
[1760368129976,0.00304261,4101.3,4101.2,1.6963]
[1760368130169,0.00304261,4101.3,4101.2,1.9483]
[1760368130370,0.00304261,4101.3,4101.2,5.1561]
[1760368131571,0.00304261,4101.3,4101.2,4.9041]
[1760368132072,0.00304261,4101.3,4101.2,5.1561]
[1760368132275,3.2078,4102.9,4102.1,2.35381]
[1760368132472,3.2078,4102.9,4102.8,1.2578]
[1760368132977,3.64612,4102.9,4102.8,0.252]
[1760368133171,3.64612,4102.9,4102.8,1.51212828]
[1760368133375,3.64791407,4102.9,4102.8,1.51212828]
[1760368133969,3.20959407,4102.9,4102.8,1.51212828]
[1760368134167,0.00179407,4102.9,4102.8,1.51212828]
[1760368134373,3.2078,4103.4,4103.2,0.43827]
[1760368134574,3.2078,4103.4,4103.3,1.5098]
[1760368134875,3.64596,4104.4,4104.2,0.43817]
[1760368135080,3.2078,4104.4,4104.3,1.5098]
[1760368135378,0.00181453,4104.4,4104.3,1.5098]
[1760368136569,3.64585,4105.4,4105.0,0.4807]
[1760368136874,3.2078,4105.4,4105.3,1.2578]
[1760368137073,3.2078,4105.9,4105.5,0.4807]
[1760368137386,3.2078,4105.9,4105.8,1.2578]
[1760368137673,3.2078,4106.6,4106.5,1.7385]
[1760368137876,0.4408799,4106.6,4106.5,1.9905]
[1760368138078,0.0029599,4106.6,4106.5,1.2578]
[1760368138283,3.6486799,4106.6,4106.5,1.5098]
[1760368138579,0.0029599,4106.6,4106.5,1.9905]
[1760368140380,0.0029599,4106.6,4106.5,1.7385]
[1760368140572,0.0029599,4106.6,4106.5,1.9905]
[1760368141877,0.43796,4106.2,4106.0,0.4807]
[1760368142073,0.43796,4106.2,4106.1,1.5098]
[1760368143476,0.43796,4106.2,4106.1,1.2578]
[1760368143674,0.43796,4106.2,4106.1,1.5098]
[1760368145170,0.43796,4106.2,4105.8,1.26003757]
[1760368145171,0.438,4105.9,4105.8,1.26003757]
[1760368145375,3.6458,4105.9,4105.8,1.51203757]
[1760368145684,3.2078,4106.4,4106.0,0.91868]
[1760368145886,3.2078,4106.4,4106.3,1.2578]
[1760368146080,0.0029599,4106.6,4106.5,1.7385]
[1760368146582,0.43797,4106.1,4106.0,1.7385]
[1760368146776,0.43797,4106.1,4106.0,1.9905]
[1760368147782,0.43797,4106.1,4106.0,0.252]
[1760368148281,0.43797,4106.1,4106.0,1.5098]
[1760368148783,0.43797,4106.1,4106.0,1.9905]
[1760368150080,0.43797,4106.1,4106.0,1.7385]
[1760368150381,0.43798,4106.0,4105.9,1.5098]
[1760368151082,1.2331,4105.9,4105.8,0.00223757]
[1760368151277,0.43812,4104.8,4104.6,0.252]
[1760368151477,4.4409,4104.7,4104.6,0.252]
[1760368151875,3.2078,4104.7,4104.6,0.252]
[1760368152080,0.43812,4104.8,4104.6,0.252]
[1760368152081,0.4381,4105.0,4104.7,1.2578]
[1760368152276,3.2078,4106.2,4105.1,1.2578]
[1760368152478,3.64577,4106.2,4106.1,1.2578]
[1760368152686,3.64577,4106.2,4106.1,1.5098]
[1760368152687,3.2078,4106.2,4106.1,1.5098]
[1760368152987,4.4409,4106.2,4106.1,0.252]
[1760368153279,3.2078,4106.2,4106.1,0.252]
[1760368153486,1.67104,4106.5,4106.3,0.43795]
[1760368153688,1.67105,4106.4,4106.1,1.94777]
[1760368153881,0.43796,4106.3,4106.1,1.94777]
[1760368154389,3.2078,4106.3,4105.6,4.4656]
[1760368154581,0.43799,4106.0,4105.9,1.2578]
[1760368154782,1.67107,4106.2,4105.9,0.43799]
[1760368154981,1.67107,4106.2,4106.0,1.2578]
[1760368155182,3.2078,4106.3,4105.7,0.252]
[1760368155387,3.2078,4106.3,4106.1,0.43797]
[1760368155589,3.2078,4106.3,4106.2,0.252]
[1760368155782,4.3738,4106.3,4106.2,0.252]
[1760368155983,1.166,4106.3,4106.2,0.252]
[1760368157689,1.166,4105.4,4105.2,1.59307]
[1760368157892,1.166,4105.2,4105.1,3.4598]
[1760368158481,0.43803,4105.6,4105.2,1.155]
[1760368158681,1.60404,4105.5,4105.3,0.43805]
[1760368158989,1.60404,4105.5,4105.1,3.4598]
[1760368158990,1.166,4105.2,4105.1,3.2078]
[1760368159293,1.166,4105.2,4105.1,3.4598]
[1760368159686,1.166,4105.2,4104.8,1.155]
[1760368159888,1.166,4105.2,4104.7,0.00249781]
[1760368159889,0.43805,4105.4,4105.2,0.43807]
[1760368160086,0.43806,4105.4,4105.3,1.155]
[1760368160289,0.43806,4105.4,4105.3,1.407]
[1760368160497,1.60406,4105.4,4105.3,0.252]
[1760368160992,1.60406,4105.4,4104.8,1.155]
[1760368160993,0.43809,4105.0,4104.8,1.155]
[1760368161196,1.60409,4105.0,4104.9,0.252]
[1760368161391,0.43809,4105.0,4104.9,1.407]
[1760368161695,3.98008461,4106.0,4105.9,0.438]
[1760368161696,0.85944283,4106.0,4105.9,0.438]
[1760368161889,3.2078,4106.3,4106.0,1.155]
[1760368162091,0.0029599,4106.6,4106.5,0.43793]
[1760368162292,0.59235264,4106.6,4106.5,2.30433]
[1760368162792,0.0029599,4106.6,4106.5,2.30433]
[1760368162993,0.59223422,4106.6,4106.5,2.30433]
[1760368163193,0.0029599,4106.6,4106.5,2.30433]
[1760368163391,0.59292587,4106.6,4106.5,2.30433]
[1760368164093,0.59292587,4106.6,4106.5,2.05233]
[1760368164292,0.59292587,4106.6,4106.5,2.30433]
[1760368164894,0.59292587,4106.6,4106.5,2.05233]
[1760368165089,0.59292587,4106.6,4106.5,2.30433]
[1760368165588,0.85944283,4107.3,4107.2,0.43786]
[1760368165795,0.022,4107.8,4107.7,0.4378]
[1760368165997,0.022,4107.8,4107.7,1.407]
[1760368166500,0.022,4107.8,4107.2,3.2078]
[1760368166691,1.19057473,4107.8,4107.4,1.155]
[1760368167093,0.43782,4107.5,4107.4,1.155]
[1760368167300,0.02457473,4107.8,4107.5,1.6144]
[1760368167499,0.02457473,4107.8,4107.7,4.3628]
[1760368168295,1.2648,4108.3,4107.8,1.09449]
[1760368168495,1.2648,4108.3,4108.2,4.80055]
[1760368168797,0.43766,4109.1,4108.9,0.43767]
[1760368168996,0.22,4109.3,4109.2,1.07]
[1760368169393,0.22197995,4109.3,4109.2,1.07]
[1760368169995,4.3738,4110.8,4109.8,1.09394]
[1760368170202,4.3738,4110.8,4109.9,4.3079]
[1760368170203,0.43749,4110.7,4109.9,4.3079]
[1760368170387,0.4375,4110.6,4110.0,0.252]
[1760368170795,4.3738,4110.8,4110.0,1.1001]
[1760368170796,0.43752,4110.4,4110.0,1.1001]
[1760368171100,0.43945766,4110.4,4110.0,1.1001]
[1760368171397,0.00193766,4110.4,4110.1,0.68954]
[1760368171600,0.00193766,4110.4,4110.1,0.25389276]
[1760368171795,0.00193766,4110.4,4110.3,1.28563]
[1760368172095,0.00193766,4110.4,4110.3,0.43753]
[1760368172397,0.00193766,4110.4,4110.3,0.8481]
[1760368173497,0.43751,4110.5,4110.3,0.8481]
[1760368173698,1.60351,4110.5,4110.2,0.68853]
[1760368173893,1.60351,4110.5,4110.4,3.2078]
[1760368174096,1.166,4110.5,4110.4,3.2078]
[1760368174295,1.16821755,4110.5,4110.4,3.2078]
[1760368174501,1.16821755,4110.5,4110.4,3.4588]
[1760368174797,0.43752,4110.4,4110.1,0.00189276]
[1760368175002,1.166,4110.2,4110.1,0.00189276]
[1760368175406,1.166,4110.2,4110.1,0.25289276]
[1760368176305,0.00221755,4110.5,4110.3,0.43752]
[1760368176497,0.00221755,4110.5,4110.4,4.3069]
[1760368178301,1.166,4111.9,4111.2,0.8458]
[1760368178493,0.43739,4111.6,4111.5,3.2078]
[1760368178695,1.166,4111.6,4111.5,3.4588]
[1760368179104,0.00195988,4111.6,4111.5,3.4588]
[1760368179306,0.00195988,4111.6,4111.5,3.2078]
[1760368179603,0.00195988,4111.6,4111.5,3.4588]
[1760368179995,1.6034,4111.5,4111.0,3.2078]
[1760368180204,0.43749,4110.7,4110.5,3.6453]
[1760368180503,0.43749,4110.7,4110.6,0.251]
[1760368180703,1.166,4110.6,4110.5,3.2078]
[1760368180895,1.166,4110.6,4110.5,3.4588]
[1760368182301,1.166,4110.6,4110.5,3.2078]
[1760368182502,1.166,4110.6,4110.5,3.4588]
[1760368182898,3.2078,4111.1,4110.6,0.43749]
[1760368183099,3.2078,4111.1,4110.5,3.89631]
[1760368183100,0.43747,4110.9,4110.5,3.89631]
[1760368183302,4.81125,4111.1,4110.6,0.8458]
[1760368183509,0.4984,4111.5,4110.9,0.8458]
[1760368183805,3.2078,4111.8,4111.5,0.4374]
[1760368184006,3.2078,4111.8,4111.5,1.5342]
[1760368184208,0.4984,4112.0,4111.5,0.251]
[1760368184501,1.16795988,4111.6,4111.5,0.251]
[1760368185499,0.00195988,4111.6,4111.5,0.251]
[1760368185701,0.00195988,4111.6,4111.5,1.094]
[1760368185901,3.2078,4112.3,4111.5,1.094]
[1760368185902,3.2078,4112.3,4111.6,1.09348]
[1760368186102,3.2078,4112.3,4112.1,0.43733]
[1760368186298,3.2078,4112.3,4111.6,1.09348]
[1760368186299,4.4176,4112.9,4112.2,3.4588]
[1760368186506,1.2098,4112.7,4112.4,0.4373]
[1760368186698,1.2098,4112.3,4112.2,3.2078]
[1760368186899,1.2122221,4112.3,4112.2,3.4588]
[1760368187505,1.6495321,4112.3,4112.2,3.4588]
[1760368187705,1.2122221,4112.3,4112.2,3.4588]
[1760368189308,1.2122221,4112.3,4112.2,0.251]
[1760368189517,0.0024221,4112.3,4112.2,3.4588]
[1760368189706,0.0024221,4112.3,4112.2,4.2991]
[1760368191515,0.022,4112.8,4112.7,0.43727]
[1760368191816,0.022,4112.8,4112.7,4.73387]
[1760368192319,0.022,4112.8,4112.7,3.4588]
[1760368192518,1.25452251,4112.8,4112.7,3.2078]
[1760368193012,1.25452251,4112.8,4112.7,0.251]
[1760368193419,0.02442251,4112.8,4112.7,0.251]
[1760368193816,0.46168251,4112.8,4112.7,0.251]
[1760368194019,1.66737,4112.7,4112.6,0.251]
[1760368195014,1.66737,4112.7,4112.2,3.2078]
[1760368195015,0.43731,4112.3,4112.2,3.2078]
[1760368195320,1.66741,4112.3,4112.2,3.4588]
[1760368195521,0.43737,4111.8,4111.6,0.43738]
[1760368195823,1.2301,4111.6,4111.5,3.2078]
[1760368196122,1.2301,4111.6,4111.5,3.4588]
[1760368196515,0.43744,4111.1,4111.0,3.2078]
[1760368196715,1.66754,4111.1,4111.0,3.4588]
[1760368197023,0.43743,4111.2,4111.0,3.89624]
[1760368197223,1.2301,4111.1,4111.0,3.4588]
[1760368197612,3.2078,4111.9,4111.0,3.4588]
[1760368197613,4.4379,4111.9,4111.1,0.8378]
[1760368197923,0.43743,4111.2,4111.0,3.89625]
[1760368198220,0.4375,4110.6,4110.5,3.2078]
[1760368198415,1.2301,4110.6,4110.5,3.4588]
[1760368198620,1.2301,4110.6,4110.5,3.2078]
[1760368198915,2.1259,4110.5,4110.4,0.251]
[1760368199120,2.71210244,4110.5,4110.4,0.251]
[1760368199419,1.66764,4110.2,4110.1,0.00189276]
[1760368199624,2.25384244,4110.2,4110.1,0.00189276]
[1760368200126,6.28970173,4110.2,4110.1,0.00189276]
[1760368200418,1.66768,4109.8,4109.7,0.251]
[1760368200627,2.25380774,4109.8,4109.7,0.251]
[1760368200923,0.43754,4110.2,4109.9,0.43756]
[1760368201125,3.2078,4110.3,4109.7,1.0888]
[1760368201126,1.66766,4110.0,4109.7,1.52638]
[1760368201426,1.66977094,4110.0,4109.8,0.43757]
[1760368201617,1.2301,4109.9,4109.8,0.43757]
[1760368202417,1.2301,4109.8,4109.7,0.00294658]
[1760368202719,1.81582721,4109.8,4109.7,0.25394658]
[1760368203414,0.00211094,4110.0,4109.9,0.8378]
[1760368204121,1.69051094,4110.0,4109.7,3.21074658]
[1760368204326,1.2301,4109.8,4109.7,3.21074658]
[1760368204625,1.2301,4109.8,4109.7,0.25394658]
[1760368205518,1.2301,4109.8,4109.7,0.00294658]
[1760368205914,1.81567866,4109.8,4109.7,0.00294658]
[1760368206118,0.43763,4109.3,4109.2,3.2078]
[1760368206326,0.43763,4109.3,4107.7,1.0945]
[1760368206327,0.43768,4108.9,4108.8,3.2078]
[1760368206527,1.66778,4108.9,4108.8,3.4588]
[1760368206721,1.2301,4109.3,4109.1,0.43765]
[1760368207023,1.2301,4109.3,4109.2,0.251]
[1760368207219,1.2301,4109.3,4109.2,0.00217]
[1760368207418,1.2301,4109.3,4109.2,0.25317]
[1760368207720,1.2301,4109.3,4108.8,3.64548]
[1760368207721,1.2301,4108.9,4108.8,3.2078]
[1760368207923,1.66778,4108.9,4108.8,3.4588]
[1760368208720,1.66778,4108.9,4108.8,3.46095336]
[1760368209322,0.43764,4109.3,4108.8,3.46095336]
[1760368209524,0.43765,4109.2,4109.0,0.43766]
[1760368209720,1.2301,4109.1,4109.0,0.43766]
[1760368209921,1.2301,4109.1,4109.0,0.251]
[1760368210121,1.2301,4108.9,4108.8,3.64763336]
[1760368210622,1.2301,4108.9,4108.8,3.46095336]
[1760368211018,1.2301,4108.9,4108.8,3.20995336]
[1760368211326,1.2301,4108.9,4108.8,0.00215336]
[1760368212216,1.2301,4109.9,4108.9,1.0942]
[1760368212423,1.2301,4109.9,4109.6,0.4376]
[1760368212628,1.2301,4109.8,4109.7,0.68859]
[1760368213123,0.00211094,4110.0,4109.9,1.27537]
[1760368213327,0.00211094,4110.0,4109.9,4.48317]
[1760368213726,3.2078,4111.4,4111.1,0.43743]
[1760368213727,1.66752,4111.4,4111.1,0.43743]
[1760368213918,1.2301,4111.3,4111.2,0.251]
[1760368214323,1.66751,4111.4,4111.2,0.251]
[1760368214537,1.2301,4111.3,4111.2,0.251]
[1760368214724,1.23272353,4111.3,4111.2,0.251]
[1760368215120,1.23272353,4111.3,4110.5,1.09377]
[1760368215121,1.2301,4110.6,4110.5,0.4375]
[1760368215320,0.00262353,4111.3,4110.6,0.8357]
[1760368215520,0.00262353,4111.3,4111.2,4.44263]
[1760368215725,0.00262353,4111.3,4111.2,4.69363]
[1760368216323,1.5898,4112.5,4112.4,0.4373]
[1760368216528,1.1315,4112.7,4112.6,0.43728]
[1760368216733,0.4431,4113.0,4112.4,3.8961]
[1760368216932,0.4431,4113.0,4111.9,3.64515]
[1760368216933,0.43731,4112.4,4111.9,3.64515]
[1760368217131,0.43735,4112.0,4111.9,3.2078]
[1760368217335,1.1315,4111.7,4111.4,0.43741]
[1760368217531,0.43737,4111.8,4111.5,0.68839]
[1760368217837,0.44562393,4112.0,4111.7,3.2078]
[1760368218035,1.56886,4111.9,4111.8,0.251]
[1760368218429,2.012,4111.5,4111.4,0.00209606]
[1760368218629,2.012,4111.5,4111.4,0.25309606]
[1760368219238,1.1315,4111.5,4111.4,0.25309606]
[1760368219531,1.13402393,4112.0,4111.9,0.43736]
[1760368219734,0.00252393,4112.0,4111.9,0.68836]
[1760368220232,0.00252393,4112.0,4111.9,0.251]
[1760368220233,1.13402393,4112.0,4111.9,0.251]
[1760368220427,0.43737,4111.8,4111.5,0.43739]
[1760368220628,2.01447393,4112.0,4111.6,0.251]
[1760368220935,1.1315,4111.9,4111.8,3.2078]
[1760368221131,0.00252393,4112.0,4111.9,0.43736]
[1760368221333,0.00252393,4112.0,4111.9,1.23476]
[1760368222026,1.1315,4111.9,4111.8,3.2078]
[1760368222233,1.56886,4111.9,4111.8,3.4588]
[1760368222630,1.5746,4111.5,4111.4,0.00209606]
[1760368222836,1.5746,4111.5,4111.4,0.25309606]
[1760368223933,1.5746,4111.5,4111.4,0.00209606]
[1760368224135,1.5746,4111.5,4111.4,0.25309606]
[1760368225339,1.1315,4111.5,4111.4,3.46089606]
[1760368225530,0.44562393,4112.0,4111.6,0.43739]
[1760368225729,1.1315,4111.9,4111.7,0.251]
[1760368225937,0.44562393,4112.0,4111.7,0.251]
[1760368226235,0.44562393,4112.0,4111.4,3.20989606]
[1760368226236,0.4431,4111.5,4111.4,3.20989606]
[1760368226434,2.012,4111.5,4111.4,3.46089606]
[1760368227040,5.2198,4111.5,4111.4,0.00209606]
[1760368228034,2.012,4111.5,4111.4,0.00209606]
[1760368229342,2.012,4111.5,4111.4,0.25309606]
[1760368230233,1.5746,4111.5,4111.4,0.25309606]
[1760368230640,1.57712393,4112.0,4111.4,0.25309606]
[1760368230845,1.1315,4111.9,4111.8,0.43737]
[1760368231033,0.44562393,4112.0,4111.9,0.7974]
[1760368231034,0.00252393,4112.0,4111.9,0.7974]
[1760368231833,0.00252393,4112.0,4111.9,1.0484]
[1760368232040,1.13402393,4112.0,4111.8,0.43737]
[1760368232246,1.13402393,4112.0,4111.9,0.251]
[1760368232538,1.13402393,4112.0,4111.8,0.43737]
[1760368232539,1.1315,4111.9,4111.8,0.43737]
[1760368232740,1.1315,4111.8,4111.7,3.2078]
[1760368232946,1.1315,4111.8,4111.7,3.4588]
[1760368234942,2.012,4111.5,4111.4,0.00209606]
[1760368235151,5.2198,4111.5,4111.4,0.00209606]
[1760368235345,1.1315,4110.3,4110.2,3.64533]
[1760368235547,1.1315,4110.3,4110.2,3.89633]
[1760368235950,1.1315,4110.9,4110.2,3.4588]
[1760368236150,1.1315,4110.9,4110.8,3.2078]
[1760368236351,0.4375,4110.6,4110.4,0.43751]
[1760368236549,1.56901,4110.5,4110.4,0.00226796]
[1760368236848,2.01211,4110.5,4110.4,0.25326796]
[1760368238659,0.4431,4111.0,4110.4,0.25326796]
[1760368238852,0.4431,4110.5,4110.4,0.25326796]
[1760368239049,1.5746,4110.5,4110.4,0.25326796]
[1760368239349,1.5746,4110.5,4110.4,0.00226796]
[1760368240041,1.5746,4110.5,4110.4,0.25326796]
[1760368241746,1.1315,4110.8,4110.6,0.43749]
[1760368241951,1.1315,4110.8,4110.7,0.68848]
[1760368242352,3.6509,4111.5,4110.7,0.68848]
[1760368242353,0.43743,4111.2,4111.0,0.43744]
[1760368242653,1.56893,4111.2,4111.1,0.251]
[1760368242849,4.7824,4111.5,4111.1,1.0484]
[1760368243042,3.6509,4111.5,4111.2,0.43743]
[1760368243552,0.00252393,4112.0,4111.8,0.43736]
[1760368243746,0.00252393,4112.0,4111.9,4.2562]
[1760368244849,1.1535,4112.8,4112.7,0.43727]
[1760368245154,1.1535,4112.8,4112.7,3.89607]
[1760368245359,1.1535,4112.8,4112.7,3.4588]
[1760368245744,1.15603617,4112.8,4112.7,3.4588]
[1760368246454,1.15603617,4112.8,4112.7,4.2178]
[1760368246455,0.02453617,4112.8,4112.7,4.2178]
[1760368246653,1.1113,4113.9,4112.9,1.09313]
[1760368246951,1.1113,4113.9,4113.3,3.2078]
[1760368247162,1.1113,4113.9,4113.8,0.43715]
[1760368247464,0.4431,4114.5,4114.0,0.43712]
[1760368247465,1.1113,4114.2,4114.0,0.43712]
[1760368247653,1.55015025,4114.2,4114.1,0.251]
[1760368247852,0.00173025,4114.2,4114.1,0.251]
[1760368248155,0.00173025,4114.2,4114.1,1.01]
[1760368249251,0.00173025,4114.2,4114.1,0.759]
[1760368249452,0.00173025,4114.2,4114.1,1.01]
[1760368249852,0.00173025,4114.2,4114.1,0.251]
[1760368250056,0.00173025,4114.2,4114.1,1.0062]
[1760368251558,0.22,4115.3,4115.2,1.1922]
[1760368251758,0.22,4115.3,4115.2,4.651]
[1760368252357,0.22,4115.3,4115.2,4.4]
[1760368252660,0.4752,4116.5,4116.1,0.4369]
[1760368252861,0.43687,4116.5,4116.2,0.4369]
[1760368253049,3.2078,4117.1,4116.3,1.09221]
[1760368253252,3.2078,4117.6,4116.7,3.2078]
[1760368253455,0.19622998,4118.5,4117.2,3.2078]
[1760368253749,1.89474196,4119.7,4119.1,0.43658]
[1760368253750,3.2078,4119.7,4119.1,0.43658]
[1760368254060,3.2078,4119.7,4119.2,0.251]
[1760368254061,0.00182239,4119.7,4119.2,0.251]
[1760368254360,0.00182239,4119.7,4119.3,0.251]
[1760368254361,1.1212,4119.6,4119.3,0.251]
[1760368254551,0.00182239,4119.7,4119.3,0.251]
[1760368254752,1.1212,4119.6,4119.3,0.251]
[1760368254962,1.1212,4119.4,4119.1,0.00179209]
[1760368255263,1.1212,4119.4,4119.1,3.20959209]
[1760368255457,0.251,4119.3,4119.1,3.20959209]
[1760368255660,1.1212,4119.2,4119.1,0.00179209]
[1760368256365,1.1212,4119.2,4118.1,0.7391]
[1760368256366,0.43667,4118.4,4118.1,0.7391]
[1760368256563,1.1212,4119.0,4118.3,3.2078]
[1760368256859,1.1212,4119.0,4117.8,3.2078]
[1760368256860,1.1212,4118.1,4117.8,3.2078]
[1760368257064,1.1212,4118.7,4117.9,0.7391]
[1760368257260,1.80784,4118.6,4118.5,3.2078]
[1760368257460,3.2078,4118.6,4118.0,3.2078]
[1760368257667,0.4752,4119.0,4118.5,3.2078]
[1760368257862,1.1212,4118.9,4118.5,3.2078]
[1760368258262,1.1212,4118.7,4117.9,0.00224357]
[1760368258562,1.1212,4118.1,4117.9,0.00224357]
[1760368258766,0.43671,4118.0,4117.9,0.00224357]
[1760368258962,2.28311,4118.0,4117.9,0.00224357]
[1760368259265,5.49091,4118.0,4117.9,0.00224357]
[1760368259462,5.49091,4118.0,4116.7,3.2078]
[1760368259463,1.1212,4116.9,4116.7,3.2078]
[1760368259664,1.1212,4116.8,4116.7,3.2078]
[1760368260057,0.68682,4116.9,4116.2,3.2078]
[1760368260058,0.43685,4116.7,4116.2,3.2078]
[1760368260262,0.02308543,4116.5,4116.2,3.6447]
[1760368260461,1.14728767,4116.5,4116.2,3.21059135]
[1760368260659,0.02608767,4116.5,4116.3,1.17598]
[1760368260860,0.03048183,4116.4,4116.3,1.17598]
[1760368261055,0.00300224,4116.5,4116.4,0.7086]
[1760368261265,1.56673,4119.0,4116.4,0.7086]
[1760368261266,1.1212,4118.3,4117.8,0.43672]
[1760368261462,3.2078,4118.7,4118.5,0.43665]
[1760368261761,1.5964,4119.0,4118.5,3.2078]